[Event "Biel Festival Masters Blitz 2024"]
[White "Martirosyan,Haik M."]
[Black "Le,Quang Liem"]
[Site "Biel"]
[Round "6.2"]
[Annotator "TA"]
[Result "1/2-1/2"]
[Date "2024.07.21"]
[WhiteElo "2662"]
[BlackElo "2731"]
[PlyCount "105"]
[TimeControl "180+2"]

{[%evp 22,105,28,37,33,28,29,8,6,0,-12,0,6,0,8,13,24,18,23,19,34,24,44,18,19,18,25,0,0,0,0,0,-6,-12,-7,-13,-4,-4,-4,-13,-17,-70,-66,-63,-72,-79,-81,-91,-87,-81,-72,-58,-16,-15,-15,-22,-25,-16,-28,-31,0,0,0,0,0,0,0,0,0,0,0,0,0,0,0,0,0,0,0,0,0,0,0,0,0,0]} 1. d4 {[%emt 0:0:1]} Nf6 {[%emt 0:0:1]} 2. c4 {[%emt 0:0:1]} e6 {[%emt 0:0:0]} 3. Nf3 {[%emt 0:0:1]} d5 {[%emt 0:0:1]} 4. Nc3 {[%emt 0:0:1]} Nbd7 {[%emt 0:0:2]} 5. cxd5 {[%emt 0:0:1]} exd5 {[%emt 0:0:1]} 6. Bg5 {[%emt 0:0:1]} c6 {[%emt 0:0:3]} 7. Qc2 {[%emt 0:0:3]} h6 {[%emt 0:0:2]} 8. Bh4 {[%emt 0:0:1]} Be7 {[%emt 0:0:1]} 9. e3 {[%emt 0:0:1]} O-O {[%emt 0:0:1]} 10. Bd3 {[%emt 0:0:1]} Re8 {[%emt 0:0:2]} 11. O-O {[%emt 0:0:1]} Ne4 {[%emt 0:0:2]} 12. Bxe4 {[%emt 0:0:2]} Bxh4 {[%emt 0:0:2]} 13. Bh7+ {[%emt 0:0:1]} Kf8 {[%emt 0:0:3]} 14. Bd3 {[%emt 0:0:6]} Be7 {[%emt 0:0:5]} 15. Ne5 {[%emt 0:0:1]} Nxe5 {[%emt 0:0:3]} 16. dxe5 {[%emt 0:0:1]} Bc5 {[%emt 0:0:1]} 17. Na4 {[%emt 0:0:3]} Bb6 {[%emt 0:0:1]} 18. Nxb6 {[%emt 0:0:8]} Qxb6 {[%emt 0:0:2]} 19. Qc3 {[%emt 0:0:1]} a5 {[%emt 0:0:2]} 20. Rac1 {[%emt 0:0:10]} Qb4 {[%emt 0:0:5]} 21. Qd4 {[%emt 0:0:8]} f6 {[%emt 0:0:42]} 22. exf6 {[%emt 0:0:34]} (22. f4 {looks sharper.} Kf7 23. Rf3 g6 24. a3 )Qxd4 {[%emt 0:0:2]} 23. exd4 {[%emt 0:0:2]} gxf6 {[%emt 0:0:2]} 24. f3 {[%emt 0:0:5]} Bd7 {[%emt 0:0:3]} 25. Kf2 {[%emt 0:0:1]} Ke7 {[%emt 0:0:2]} 26. Rfe1+ {[%emt 0:0:29]} Kd6 {[%emt 0:0:1]} 27. Rxe8 {[%emt 0:0:1]} Rxe8 $11 {[%emt 0:0:3][%mdl 4096] Endgame. KRB-KRB} 28. Re1 {[%emt 0:0:16]} Rc8 {[%emt 0:0:9]} 29. g4 {[%emt 0:0:6]} b6 {[%emt 0:0:2]} 30. Bf5 {[%emt 0:0:9]} c5 {[%emt 0:0:2]} ({Much weaker is} 30... Bxf5 31. gxf5 Kd7 32. Re6 $14 )31. dxc5+ {[%emt 0:0:5]} (31. Bxd7 $11 Kxd7 32. Ke3 )bxc5 $15 {[%emt 0:0:1]} 32. Bxd7 {[%emt 0:0:18]} Kxd7 $11 {[%emt 0:0:1] KR-KR} 33. f4 {[%emt 0:0:21]} Rb8 {[%emt 0:0:15]} 34. b3 {[%emt 0:0:2] [#]} a4 $1 {[%emt 0:0:2]} 35. Re3 {[%emt 0:0:4] [#]} Rb4 $1 {[%emt 0:0:5]} 36. Kf3 {[%emt 0:0:4]} axb3 {[%emt 0:0:15]} 37. axb3 {[%emt 0:0:0]} Kd6 {[%emt 0:0:1]} 38. h4 {[%emt 0:0:10]} d4 {[%emt 0:0:1]} 39. Rd3 {[%emt 0:0:1]} Kd5 {[%emt 0:0:1]} 40. g5 {[%emt 0:0:1]} fxg5 {[%emt 0:0:7]} 41. fxg5 {[%emt 0:0:3] The position is equal.} hxg5 {[%emt 0:0:2]} 42. hxg5 {[%emt 0:0:1]} Rb8 {[%emt 0:0:7] Threatens to win with ...Rg8.} 43. Ke2 {[%emt 0:0:10]} c4 {[%emt 0:0:34]} 44. bxc4+ {[%emt 0:0:2]} Kxc4 {[%emt 0:0:1]} 45. Rg3 {[%emt 0:0:1]} Rb2+ {[%emt 0:0:7]} 46. Kd1 {[%emt 0:0:10]} d3 {[%emt 0:0:3]} 47. Kc1 {[%emt 0:0:5]} Rc2+ {[%emt 0:0:18]} 48. Kb1 $1 {[%emt 0:0:1] aiming for g6.} (48. Kd1 Kc3 49. Ke1 Rh2 $19 )Re2 {[%emt 0:0:3] ( -> ...Re1+)} (48... Kc3 $5 49. g6 $8 Rb2+ 50. Ka1 Rb8 $11 )49. g6 {[%emt 0:0:6] Black must now prevent g7.} Re1+ {[%emt 0:0:2]} 50. Kb2 {[%emt 0:0:1]} Re2+ {[%emt 0:0:8]} (50... d2 $5 51. g7 $8 Rb1+ 52. Ka3 (52. Kxb1 d1=Q+ 53. Ka2 Qd2+ 54. Kb1 Qe1+ 55. Kc2 Qxg3 56. g8=R Qxg8 57. Kd2 Qe8 58. Kc1 Kc3 59. Kd1 Qe7 60. Kc1 Qe1# )Rb8 53. Rg4+ Kc5 54. Rg5+ Kc4 55. Rg4+ Kd3 $11 )51. Kb1 {[%emt 0:0:1] g7 would now be deadly.} Re1+ {[%emt 0:0:14]} 52. Kb2 {[%emt 0:0:0]} Re2+ {[%emt 0:0:1]} (52... d2 $5 53. g7 $8 Rb1+ 54. Ka3 (54. Kxb1 {is a self mate.} d1=Q+ 55. Kb2 Qd2+ 56. Kb1 Qe1+ 57. Kc2 Qxg3 58. g8=R Qxg8 59. Kd2 Kd4 60. Ke1 Ke3 61. Kf1 Qg7 62. Ke1 Qg1# )Rb8 55. Rg4+ Kc5 56. Rg5+ Kc6 $11 )53. Kb1 {[%emt 0:0:1] Weighted Error Value: White=0.06 (flawless) /Black=0.04 (flawless) .  Mistake:       	White=1     	---        Inaccurate:     	White=1     	Black=2      OK:         	White=18    	Black=16     Best:        	White=4     	Black=1      Strong:       	White=1     	Black=1} 1/2-1/2

[Event "Biel Festival Masters Blitz 2024"]
[White "Praggnanandhaa R"]
[Black "Shankland,Sam"]
[Site "Biel"]
[Round "6.3"]
[Annotator "TA"]
[Result "0-1"]
[Date "2024.07.21"]
[WhiteElo "2747"]
[BlackElo "2683"]
[PlyCount "102"]
[TimeControl "180+2"]

{[%evp 48,101,-349,-358,-374,-413,-381,-362,-116,-118,-116,-158,-168,-165,-166,-162,-88,-114,-45,-61,-77,-150,-109,-202,-210,-322,-322,-317,-317,-302,-230,-458,-203,-389,-410,-469,-460,-518,-464,-485,-459,-397,-237,-654,-568,-633,-590,-675,-639,-986,-975,-852,-851,-29998,-29999,-29999]} 1. e4 {[%emt 0:0:1]} c5 {[%emt 0:0:1]} 2. Nf3 {[%emt 0:0:1]} d6 {[%emt 0:0:0]} 3. Nc3 {[%emt 0:0:4]} Nc6 {[%emt 0:0:2]} 4. Bb5 {[%emt 0:0:10]} e5 {[%emt 0:0:3]} 5. d3 {[%emt 0:0:2]} Nf6 {[%emt 0:0:7]} 6. O-O {[%emt 0:0:2]} Be7 {[%emt 0:0:0]} 7. h3 {[%emt 0:0:1] B51: Sizilianisch (Rossolimo-Variante).} O-O {[%emt 0:0:2]} 8. a4 {[%emt 0:0:1]} h6 {[%emt 0:0:18]} 9. Bc4 {[%emt 0:0:5]} Be6 {[%emt 0:0:2]} 10. Re1 {[%emt 0:0:2]} Qd7 {[%emt 0:0:8]} 11. Bd2 {[%emt 0:0:5]} Rae8 $146 {[%emt 0:0:11]} ({Predecessor:} 11... Bd8 12. Nh2 Nh7 13. Nf1 f5 14. exf5 Bxc4 15. dxc4 Qxf5 16. Ne4 Bh4 17. Nfg3 Bxg3 18. fxg3 {½-½ Sherwood,R (2416)-Jones,I (2409) WLS Inv10 email 2021} )12. Nd5 {[%emt 0:0:5]} Bd8 {[%emt 0:0:2]} 13. c3 {[%emt 0:0:2]} a6 {[%emt 0:0:8]} 14. a5 {[%emt 0:0:34]} Bxd5 {[%emt 0:0:9]} 15. exd5 {[%emt 0:0:2]} Ne7 {[%emt 0:0:1]} 16. Qb3 {[%emt 0:0:2]} Ng6 {[%emt 0:0:4]} 17. Qa2 {[%emt 0:0:9]} Nh5 {[%emt 0:0:4]} 18. Bb3 {[%emt 0:0:1]} Nhf4 {[%emt 0:0:21]} 19. Ba4 {[%emt 0:0:15]} Qf5 {[%emt 0:0:1]} 20. Bxe8 {[%emt 0:0:4]} Rxe8 {[%emt 0:0:1]} 21. Qa4 {[%emt 0:0:2]} Rf8 {[%emt 0:0:4]} 22. Qe4 {[%emt 0:0:2]} Qh5 {[%emt 0:0:1]} 23. c4 {[%emt 0:0:55]} f5 {[%emt 0:0:5]} 24. Qe3 {[%emt 0:0:0]} Nxg2 {[%emt 0:0:12]} 25. Kxg2 {[%emt 0:0:16]} Nf4+ {[%emt 0:0:0]} 26. Kg1 {[%emt 0:0:21]} Qg6+ {[%emt 0:0:43]} (26... Qxh3 27. Nh4 Bxh4 (27... Qxh4 $2 28. Qf3 $19 )28. Qxh3 Nxh3+ 29. Kg2 Nxf2 30. Re3 $19 )27. Ng5 {[%emt 0:0:2]} Qxg5+ $2 {[%emt 0:0:10]} (27... hxg5 $19 {ist viel giftiger.} 28. Qg3 Qh5 )28. Qg3 $17 {[%emt 0:0:1]} Nxh3+ {[%emt 0:0:1]} 29. Kh2 {[%emt 0:0:1]} Qxd2 {[%emt 0:0:4]} 30. Kxh3 {[%emt 0:0:1]} Bg5 {[%emt 0:0:5]} (30... Qxb2 31. Rab1 Qc3 32. Rxb7 $11 )(30... Bxa5 31. Qg6 $17 )31. Kg2 {[%emt 0:0:14]} Kh7 {[%emt 0:0:4]} (31... Rf7 $19 32. Qf3 Qxb2 )32. Qf3 $17 {[%emt 0:0:5]} Bf4 {[%emt 0:0:7]} (32... Bd8 $17 33. Re2 Qb4 (33... Qg5+ $2 34. Qg3 $19 ))33. Re2 {[%emt 0:0:1]} Qb4 {[%emt 0:0:1]} 34. Kh1 {[%emt 0:0:8]} (34. Ree1 $142 )Rf6 {[%emt 0:0:5]} 35. Qh3 {[%emt 0:0:8]} (35. Ree1 $17 {war angesagt.} )Qb3 $1 $19 {[%emt 0:0:6]} 36. Qf3 {[%emt 0:0:3]} (36. Ree1 {ist eine bessere Verteidigung.} )g5 $19 {[%emt 0:0:2]} 37. Ree1 {[%emt 0:0:2] [#]} e4 $1 {[%emt 0:0:3]} (37... Qxb2 38. Rab1 g4 39. Rxb2 $18 (39. Qxf4 Qxb1 $17 ))38. Qd1 {[%emt 0:0:2]} Qxb2 {[%emt 0:0:13]} 39. Qe2 $2 {[%emt 0:0:2]} (39. Qh5 {war einen Versuch wert.} Qxf2 (39... exd3 40. Re7+ Kg8 41. Qe8+ Rf8 42. Qg6+ Kh8 43. Qh7# )40. dxe4 )Qc3 {[%emt 0:0:4]} (39... Qxe2 $142 40. Rxe2 exd3 41. Re7+ Kg6 )40. Kg2 $2 {[%emt 0:0:3]} (40. Qh5 Kg7 (40... Qxd3 $2 41. Rab1 $19 )41. dxe4 Qxc4 42. Rab1 )g4 $19 {[%emt 0:0:2]} (40... Qxd3 41. Qxd3 exd3 42. Re7+ Kg6 43. Rd1 $19 )(40... exd3 $2 41. Qe7+ Kg8 42. Ra3 $18 )41. Rab1 {[%emt 0:0:2]} Rf7 {[%emt 0:0:2]} (41... Qxa5 42. dxe4 (42. Rxb7+ Kg8 $16 )Qc7 43. exf5 $16 )42. Red1 {[%emt 0:0:2]} Re7 {[%emt 0:0:4]} 43. Qb2 {[%emt 0:0:2]} Qxb2 {[%emt 0:0:6]} ({Nicht} 43... Qxa5 44. Qf6 Bg5 45. Qxf5+ Kg7 46. Qxg4 $11 (46. dxe4 Qc3 $11 ))44. Rxb2 {[%emt 0:0:0]} Be5 {[%emt 0:0:4]} (44... e3 $142 45. Re2 Kg6 )45. Rb3 $2 {[%emt 0:0:3]} (45. Re2 )f4 $19 {[%emt 0:0:7]} 46. dxe4 {[%emt 0:0:2] [#]} f3+ $1 {[%emt 0:0:1]} 47. Kg1 {[%emt 0:0:2]} Bd4 {[%emt 0:0:1]} 48. Rdb1 {[%emt 0:0:3]} Rxe4 {[%emt 0:0:1]} 49. Rxb7+ {[%emt 0:0:3]} Kg6 {[%emt 0:0:1]} 50. R1b6 {[%emt 0:0:2]} Re1+ {[%emt 0:0:3]} 51. Kh2 {[%emt 0:0:0]} Be5# {[%emt 0:0:0]} 0-1

[Event "Biel Festival Masters Blitz 2024"]
[White "Praggnanandhaa R"]
[Black "Mishra,Abhimanyu"]
[Site "Biel"]
[Round "7.1"]
[Annotator "TA"]
[Result "1-0"]
[Date "2024.07.21"]
[WhiteElo "2747"]
[BlackElo "2627"]
[PlyCount "93"]
[TimeControl "180+2"]

{[%evp 14,93,21,22,41,14,16,14,15,15,22,16,18,17,16,0,27,0,15,6,57,27,27,-31,24,0,21,35,62,28,24,0,0,0,0,0,25,32,96,91,99,-62,212,212,282,113,178,189,174,174,177,145,149,148,150,0,8,7,45,0,88,-32,52,81,84,68,272,220,215,215,289,268,441,379,6187,5724,29991,29992,29992,29993,29993,29994]} 1. e4 {[%emt 0:0:1]} e5 {[%emt 0:0:1]} 2. Nf3 {[%emt 0:0:1]} Nc6 {[%emt 0:0:1]} 3. Bc4 {[%emt 0:0:1]} Bc5 {[%emt 0:0:3]} 4. d3 {[%emt 0:0:1]} Nf6 {[%emt 0:0:3]} 5. c3 {[%emt 0:0:1]} O-O {[%emt 0:0:8]} 6. O-O {[%emt 0:0:2]} d6 {[%emt 0:0:1]} 7. Bb3 {[%emt 0:0:5]} Bb6 {[%emt 0:0:11]} 8. Nbd2 {[%emt 0:0:1][%cal Bb1d2,Bd2f1,Bf1g3][%mdl 32]} a5 {[%emt 0:0:1]} 9. h3 {[%emt 0:0:5]} h6 {[%emt 0:0:2]} 10. Re1 {[%emt 0:0:1]} Re8 {[%emt 0:0:7] The position is equal.} 11. Nf1 {[%emt 0:0:6]} Be6 {[%emt 0:0:5]} 12. Bc2 {[%emt 0:0:5]} d5 {[%emt 0:0:3]} 13. exd5 {[%emt 0:0:1]} Bxd5 {[%emt 0:0:7]} 14. Ng3 {[%emt 0:0:2]} Qd7 {[%emt 0:0:8]} 15. Be3 {[%emt 0:0:14]} Bxe3 {[%emt 0:0:4]} 16. Rxe3 {[%emt 0:0:2]} Re7 {[%emt 0:0:16]} (16... b5 $11 )17. Qe2 {[%emt 0:0:26]} Rae8 {[%emt 0:0:3]} 18. Re1 {[%emt 0:0:12]} (18. a3 $11 )g6 {[%emt 0:0:6]} (18... Bxa2 $15 19. Qd1 Nd5 )19. Qd2 {[%emt 0:0:19]} b5 {[%emt 0:0:14] Wards off Ba4} 20. Nh4 {[%emt 0:0:11]} a4 {[%emt 0:0:55][%cal Of6h7]} 21. R3e2 {[%emt 0:0:7]} Kh7 {[%emt 0:0:4]} 22. b3 {[%emt 0:0:14]} axb3 {[%emt 0:0:11]} 23. axb3 {[%emt 0:0:1]} b4 {[%emt 0:0:13]} 24. c4 $40 {[%emt 0:0:12][%mdl 128] White is up to no good.} Nd4 {[%emt 0:0:10]} (24... Be6 $5 )25. cxd5 {[%emt 0:0:6]} Nxe2+ {[%emt 0:0:1]} (25... Nxd5 $14 26. Rc1 Ra8 )26. Rxe2 $16 {[%emt 0:0:16]} Nxd5 {[%emt 0:0:1]} 27. d4 $2 {[%emt 0:0:19]} (27. Re4 $16 )Nf4 $2 {[%emt 0:0:2][%mdl 8192]} (27... Nc3 $15 {stays ahead.} 28. Re4 Nxe4 29. Nxe4 Kg7 (29... Qxd4 30. Nf6+ Kg7 31. Nh5+ Kg8 32. Nf6+ Kg7 33. Nh5+ Kh7 34. Nf6+ Kg7 $11 ))28. Re4 $18 {[%emt 0:0:2]} Qd5 {[%emt 0:0:23]} 29. Nf3 {[%emt 0:0:20]} (29. Qxb4 $18 {is more deadly. And now dxe5 would win.} Qc6 30. Qc4 Qxc4 31. bxc4 )c5 {[%emt 0:0:8]} (29... f5 $16 {was necessary.} 30. Rxe5 Nxh3+ 31. gxh3 Qxf3 32. Rxe7+ (32. Qxb4 Rxe5 33. dxe5 Rxe5 $11 )Rxe7 )30. dxe5 {[%emt 0:0:14]} (30. Rxe5 Nxh3+ (30... Rxe5 31. Qxf4 R5e7 32. h4 $14 )31. Kf1 (31. gxh3 Rxe5 32. Nxe5 Rxe5 $11 )Rxe5 32. dxe5 Qxd2 33. Nxd2 Ng5 $16 )Qxd2 {[%emt 0:0:2]} 31. Nxd2 {[%emt 0:0:2]} Ne6 {[%emt 0:0:1]} 32. Nc4 {[%emt 0:0:4]} Nd4 {[%emt 0:0:4]} 33. Bd1 {[%emt 0:0:1]} Ra8 {[%emt 0:0:1]} 34. Kh2 {[%emt 0:0:3]} (34. Re1 $16 )Ra1 $11 {[%emt 0:0:1]} 35. Ne3 {[%emt 0:0:5]} Rb1 {[%emt 0:0:3][%cal Oh7g7]} 36. f4 {[%emt 0:0:4]} Nxb3 {[%emt 0:0:2]} (36... Re8 $1 $11 {keeps the balance.} )37. Nd5 {[%emt 0:0:2]} ({Better is} 37. Rc4 $16 )Ra7 {[%emt 0:0:1]} (37... Rxd1 $15 38. Nxe7 Rd7 (38... Nd2 39. Re2 $11 ))38. Bxb3 $14 {[%emt 0:0:4]} ({Don't do} 38. Bc2 $6 Rb2 39. Bxb3 Rxb3 $18 )Rxb3 {[%emt 0:0:1]} 39. Rc4 {[%emt 0:0:0]} Rd3 $2 {[%emt 0:0:5]} (39... Ra5 $14 )40. Nf6+ {[%emt 0:0:2] A dynamic duo of knights.} Kg7 {[%emt 0:0:2] [#] White must now prevent ...Rc3.} 41. Rxc5 {[%emt 0:0:1]} Ra8 {[%emt 0:0:1] Prevents Rc8.} 42. Rb5 {[%emt 0:0:2]} b3 $2 {[%emt 0:0:5]} (42... Rda3 {keeps fighting.} 43. Rxb4 R3a4 )43. Nge4 $18 {[%emt 0:0:3] Rb7 is the strong threat.} h5 $2 {[%emt 0:0:3]} (43... Rd1 44. Rxb3 Rda1 )44. Rb7 {[%emt 0:0:1] [#] White threatens Ng5 and mate.} h4 {[%emt 0:0:1]} 45. Ng5 {[%emt 0:0:1] White mates.} Rf8 {[%emt 0:0:4]} 46. Ne6+ {[%emt 0:0:0]} Kh6 {[%emt 0:0:2]} 47. Nxf8 {[%emt 0:0:1] Weighted Error Value: White=0.35/Black=0.53.  Loses game:     	---       	Black=2      Missed win:     	White=1     	---        Mistake:       	White=4     	Black=8      Inaccurate:     	White=4     	Black=6      OK:         	White=13    	Black=12     Best:        	White=3     	Black=3} 1-0

[Event "Biel Festival Masters Blitz 2024"]
[White "Shankland,Sam"]
[Black "Martirosyan,Haik M."]
[Site "Biel"]
[Round "7.2"]
[Annotator "TA"]
[Result "0-1"]
[Date "2024.07.21"]
[WhiteElo "2683"]
[BlackElo "2662"]
[PlyCount "102"]
[TimeControl "180+2"]

{[%evp 56,102,92,0,75,68,149,29,18,23,32,25,45,0,0,-4,0,-8,22,30,49,16,79,83,110,8,16,14,64,-32,-28,-28,-28,-33,-28,-50,-66,-7022,-5821,-1477,-363,-29992,-29979,-29978,-594,-29992,-29975,-29990,-29991]} 1. d4 {[%emt 0:0:0]} Nf6 {[%emt 0:0:1]} 2. c4 {[%emt 0:0:0]} e6 {[%emt 0:0:1]} 3. Nc3 {[%emt 0:0:1]} Bb4 {[%emt 0:0:1]} 4. Qc2 {[%emt 0:0:1]} O-O {[%emt 0:0:5]} 5. a3 {[%emt 0:0:0]} Bxc3+ {[%emt 0:0:2]} 6. Qxc3 {[%emt 0:0:1]} h6 {[%emt 0:0:4]} 7. Nf3 {[%emt 0:0:4] E32: Nimzo-Indian: Classical (4 Qc2): 4...0-0.} b6 {[%emt 0:0:1]} 8. g3 {[%emt 0:0:3]} Bb7 {[%emt 0:0:2]} 9. Bg2 {[%emt 0:0:1]} a5 {[%emt 0:0:1]} 10. b3 {[%emt 0:0:5]} d6 {[%emt 0:0:2]} 11. O-O {[%emt 0:0:2]} Nbd7 {[%emt 0:0:1]} 12. Bb2 {[%emt 0:0:2]} Qe7 {[%emt 0:0:6]} 13. Rac1 {[%emt 0:0:29]} Rfe8 {[%emt 0:0:2]} 14. Rfe1 {[%emt 0:0:8]} Be4 $146 {[%emt 0:0:13]} ({Predecessor:} 14... Rac8 15. b4 Be4 16. Red1 axb4 17. axb4 b5 18. cxb5 Nb6 19. Bf1 Qd7 20. Nd2 Qxb5 {½-½ Latronico,N (2452)-De Oliveira,J (2574) W-ch29 q04 email 2009} )15. Bf1 {[%emt 0:0:3]} e5 {[%emt 0:0:13]} 16. Nd2 {[%emt 0:0:5]} Bh7 {[%emt 0:0:13]} 17. e4 {[%emt 0:0:5]} exd4 {[%emt 0:0:22]} 18. Qxd4 {[%emt 0:0:1]} Nc5 {[%emt 0:0:1]} 19. Bg2 {[%emt 0:0:13]} Rad8 {[%emt 0:0:2]} 20. f4 {[%emt 0:0:4]} Qf8 {[%emt 0:0:4]} 21. b4 {[%emt 0:0:7]} axb4 {[%emt 0:0:2]} 22. axb4 {[%emt 0:0:0]} Na4 {[%emt 0:0:14]} 23. Ba1 {[%emt 0:0:1]} c5 {[%emt 0:0:2]} 24. Qf2 {[%emt 0:0:21]} cxb4 {[%emt 0:0:11]} 25. Bxf6 {[%emt 0:0:1]} gxf6 {[%emt 0:0:1]} 26. f5 {[%emt 0:0:13]} Nc5 {[%emt 0:0:1]} 27. Qd4 {[%emt 0:0:5]} Ra8 {[%emt 0:0:10]} 28. Rb1 {[%emt 0:0:52]} Ra2 {[%emt 0:0:1]} 29. Re3 {[%emt 0:0:3]} (29. Rxb4 Bxf5 30. Rxb6 Be6 $11 )(29. Red1 $16 )h5 {[%emt 0:0:9]} (29... Ra4 $11 )30. Rxb4 $16 {[%emt 0:0:14]} Qh6 {[%emt 0:0:0]} (30... Qe7 $14 )31. Rxb6 {[%emt 0:0:10]} (31. Nf1 $1 $16 Nd7 32. Rb5 (32. Qxd6 Bxf5 33. Qf4 Qxf4 $14 ))Bxf5 $1 $11 {[%emt 0:0:7]} 32. Rxd6 {[%emt 0:0:1]} Ne6 {[%emt 0:0:14]} 33. Qc3 {[%emt 0:0:5]} Bg6 {[%emt 0:0:9]} 34. Re1 {[%emt 0:0:7]} h4 {[%emt 0:0:5]} 35. Qe3 {[%emt 0:0:6]} Ng5 {[%emt 0:0:8]} 36. c5 {[%emt 0:0:8]} h3 {[%emt 0:0:21]} 37. Bh1 $1 {[%emt 0:0:2]} Rc2 {[%emt 0:0:7]} 38. c6 {[%emt 0:0:3]} Ra8 {[%emt 0:0:1]} (38... Re5 $11 )39. e5 $16 {[%emt 0:0:7]} (39. Rxf6 Rxd2 (39... Raa2 40. Rd6 $14 )40. e5 (40. Qxd2 $2 Nf3+ 41. Rxf3 Qxd2 $19 )Kg7 $11 )Re8 {[%emt 0:0:11] [#]} 40. Qd4 {[%emt 0:0:4]} (40. Rxf6 $6 Rxd2 41. c7 (41. Qxd2 $2 Nf3+ 42. Rxf3 Qxd2 $19 )Rc2 $11 )(40. e6 $1 $16 {[%cal Re6e7]} fxe6 (40... Rxe6 $2 41. Rxe6 fxe6 42. Nb3 $16 )41. Rd7 )fxe5 {[%emt 0:0:5]} 41. Qe3 {[%emt 0:0:0]} (41. Rxe5 Ne6 42. Qe3 Rc1+ 43. Nf1 Qxe3+ 44. Rxe3 Rb8 $17 )Kg7 {[%emt 0:0:5]} ({Black should try} 41... Kh7 $11 )42. Nf3 {[%emt 0:0:2]} ({Better is} 42. Bd5 $14 )Nxf3+ $15 {[%emt 0:0:3]} 43. Bxf3 {[%emt 0:0:1]} Qxe3+ {[%emt 0:0:3]} 44. Rxe3 {[%emt 0:0:0]} e4 {[%emt 0:0:1]} 45. Bg4 {[%emt 0:0:3]} Rb8 {[%emt 0:0:10]} 46. Re1 $2 {[%emt 0:0:3][%mdl 8192] [#]} (46. Re2 $15 Rc1+ 47. Kf2 )Rg2+ $1 $19 {[%emt 0:0:3]} 47. Kf1 {[%emt 0:0:4]} Rbb2 $2 {[%emt 0:0:2]} (47... Rxh2 {( -> ...Rbb2)} 48. Bxh3 Rbb2 (48... Rxh3 $2 49. c7 $19 ))48. Be2 $2 {[%emt 0:0:2]} (48. Re2 $19 Rbxe2 (48... Rxh2 49. Rxh2 Rxh2 50. c7 $11 )(48... Rb1+ $2 49. Re1 $19 )49. Bxe2 Rxh2 50. c7 Rh1+ 51. Kf2 )Rxh2 {[%emt 0:0:5]} 49. c7 {[%emt 0:0:1]} Rc2 {[%emt 0:0:1]} (49... Rh1+ $142 50. Kf2 Rxe1 51. Kxe1 h2 52. c8=Q h1=Q+ (52... h1=R+ 53. Bf1 $11 )53. Bf1 Rb1+ (53... Qf3 $2 54. Rxg6+ fxg6 55. Qd7+ Kh6 56. Qh3+ Qh5 57. Qxh5+ Kxh5 58. Bh3 $19 )54. Rd1 Rxd1+ 55. Kxd1 Qxf1+ 56. Kd2 Qf2+ 57. Kc3 e3 (57... Qxg3+ $2 58. Kb4 $19 )58. Qe8 e2 (58... Qxg3 {is a self mate.} 59. Kb2 Qg2+ 60. Ka3 Qe4 61. Qc8 Qd3+ 62. Ka2 e2 63. Qc1 Qc2+ 64. Qxc2 Bxc2 65. Kb2 Be4 66. Kc3 e1=Q+ 67. Kc4 Qc1+ 68. Kb4 Qc6 69. Kb3 Qc5 70. Kb2 Qb4+ 71. Kc1 Qc3+ 72. Kd1 Bf3# )59. Qe5+ Kh7 60. g4 e1=Q+ (60... e1=B+ 61. Qxe1 Qxe1+ 62. Kc4 Qe4+ 63. Kc5 Qxg4 64. Kd5 Qb4 65. Kc6 Be4+ 66. Kd7 Qc5 67. Kd8 Bf5 68. Ke8 Qd6 69. Kxf7 Bg6# )61. Qxe1 Qxe1+ 62. Kc4 Qe5 63. g5 Be4 (63... Qxg5 64. Kd4 Qb5 65. Kc3 Qc5+ 66. Kd2 Be4 67. Ke2 Qd4 68. Ke1 Qe3+ 69. Kf1 Qd2 70. Kg1 Qg2# )64. g6+ Kxg6 65. Kb4 Qd4+ (65... f5 {leads to mate.} 66. Kc4 Kg5 67. Kb4 Qd4+ 68. Kb5 f4 69. Ka5 Qc5+ 70. Ka6 Qb4 71. Ka7 Qb7# )66. Kb5 Kh6 (66... Qf2 67. Kc4 f5 68. Kc3 Qc5+ 69. Kd2 f4 70. Ke1 Qe3+ 71. Kd1 Qf2 72. Kc1 Qc2# )(66... f5 67. Ka5 Qc5+ 68. Ka6 Qb4 69. Ka7 Qb7# )67. Ka5 Qc5+ 68. Ka6 Qb4 69. Ka7 Qb7# )50. Rd7 {[%emt 0:0:4]} Rh1+ {[%emt 0:0:3]} 51. Kf2 {[%emt 0:0:1]} Rxe1 {[%emt 0:0:1]} 0-1

[Event "Biel Festival Masters Blitz 2024"]
[White "Le,Quang Liem"]
[Black "Keymer,Vincent"]
[Site "Biel"]
[Round "7.3"]
[Annotator "TA"]
[Result "1-0"]
[Date "2024.07.21"]
[WhiteElo "2731"]
[BlackElo "2721"]
[PlyCount "65"]
[TimeControl "180+2"]

{[%evp 14,65,-24,-26,-21,-15,-13,-25,0,-37,-17,-34,39,48,53,43,70,48,37,35,39,45,73,66,124,79,267,268,248,222,330,333,360,356,322,309,29987,285,302,284,254,0,29987,29988,29991,29992,29993,29994,29994,550,542,546,558,550]} 1. c4 {[%emt 0:0:1]} Nf6 {[%emt 0:0:1]} 2. Nc3 {[%emt 0:0:1]} e5 {[%emt 0:0:0]} 3. g3 {[%emt 0:0:1]} Bb4 {[%emt 0:0:1]} 4. Bg2 {[%emt 0:0:2]} O-O {[%emt 0:0:2]} 5. Nf3 {[%emt 0:0:4]} Re8 {[%emt 0:0:16]} 6. O-O {[%emt 0:0:2]} e4 {[%emt 0:0:10]} 7. Ng5 {[%emt 0:0:11]} Bxc3 {[%emt 0:0:1]} 8. dxc3 {[%emt 0:0:2]} h6 {[%emt 0:0:3]} 9. Nh3 {[%emt 0:0:1][%cal Bg5h3,Bh3f4,Bf4d5][%mdl 32]} d6 {[%emt 0:0:2]} 10. Nf4 {[%emt 0:0:5]} Nbd7 {[%emt 0:0:7] Black has an edge.} 11. Qc2 {[%emt 0:0:9]} Nb6 {[%emt 0:0:12]} 12. b3 {[%emt 0:0:6]} g5 {[%emt 0:0:1] [#]} (12... Qe7 $15 )13. Nd5 $1 $14 {[%emt 0:0:8]} Nbxd5 {[%emt 0:0:2]} (13... Nfxd5 14. cxd5 )14. cxd5 {[%emt 0:0:1]} Bf5 {[%emt 0:0:21][%cal Of5g6]} 15. c4 {[%emt 0:0:3]} Qe7 {[%emt 0:0:15]} 16. Bb2 {[%emt 0:0:6]} Nd7 $1 {[%emt 0:0:0]} 17. Rae1 $36 {[%emt 0:0:17][%mdl 2048] White has good play.} Bg6 {[%emt 0:0:18]} 18. Qc3 {[%emt 0:0:4]} f6 {[%emt 0:0:5]} ({Black should try} 18... Qe5 $14 )19. f4 {[%emt 0:0:6]} e3 $2 {[%emt 0:0:3]} (19... exf3 $16 20. exf3 Qh7 )20. Bh3 $18 {[%emt 0:0:12] aiming for Bxd7. This pair of bishops is nice.} Kh7 {[%emt 0:0:30]} 21. Be6 {[%emt 0:0:16] fxg5 would now be deadly.} gxf4 {[%emt 0:0:33]} (21... Nc5 $142 22. f5 (22. Qxf6 Qxf6 23. Bxf6 gxf4 $14 )(22. Qxe3 gxf4 23. Rxf4 Nxe6 $16 )Bf7 23. Qxf6 Qxf6 24. Bxf6 Bxe6 )22. Rxf4 {[%emt 0:0:2]} Nc5 {[%emt 0:0:8]} 23. Ref1 {[%emt 0:0:34]} (23. Rxf6 Ne4 $11 )(23. Qxf6 Nxe6 24. dxe6 Qxf6 25. Rxf6 Re7 $16 )Nxe6 {[%emt 0:0:19]} 24. dxe6 {[%emt 0:0:2]} f5 {[%emt 0:0:4]} (24... Qxe6 $18 25. Rxf6 (25. Qxf6 Qxf6 26. Rxf6 a5 $14 )Qg8 )25. g4 $2 {[%emt 0:0:3]} (25. Qxe3 Qxe6 26. Qd4 Qe3+ 27. R1f2 Qxd4 28. Rxd4 b6 $11 )(25. Rxf5 {mates} Bxf5 26. Rxf5 Rg8 27. Rf7+ (27. Qxe3 Raf8 $18 )Qxf7 28. exf7 Rg5 29. Qd3+ (29. Qxe3 Re5 $18 )Rg6 30. Qxe3 )Rg8 {[%emt 0:0:1]} 26. Kh1 {[%emt 0:0:15]} ({Don't take} 26. Qxe3 Rae8 27. Kh1 (27. Qxa7 Qxe6 28. e4 Bh5 $16 )fxg4 )Raf8 {[%emt 0:0:14]} 27. gxf5 {[%emt 0:0:11]} (27. Qxe3 $18 {[%cal Rg4f5]} Be8 28. h3 (28. gxf5 $2 Bc6+ 29. R4f3 Rxf5 $19 )(28. Rxf5 $2 Rxf5 29. Rxf5 Rxg4 $19 )Bc6+ 29. Kg1 (29. Kh2 Rg6 $18 ))Bxf5 $4 {[%emt 0:0:4][%mdl 8192] [#]} 28. Rxf5 {[%emt 0:0:8]} Rxf5 {[%emt 0:0:2]} 29. Rxf5 {[%emt 0:0:2]} Qxe6 {[%emt 0:0:1]} 30. Qd3 {[%emt 0:0:9][%cal Rf5f7]} Rg6 {[%emt 0:0:0]} 31. Qd5 {[%emt 0:0:3]} (31. Rf8 $142 Qg8 32. Rxg8 Kxg8 33. Qxg6+ Kf8 34. Qg7+ (34. Qxh6+ Kf7 35. Qg7+ Ke6 36. Qf6+ Kd7 37. Qf7+ Kd8 38. Bf6+ Kc8 39. Qe8# )Ke8 35. Bf6 h5 36. Qe7# )Qxd5+ {[%emt 0:0:5]} 32. cxd5 {[%emt 0:0:1]} Kg8 {[%emt 0:0:2]} 33. Bd4 {[%emt 0:0:1] Weighted Error Value: White=0.69/Black=0.64.  Loses game:     	---       	Black=2      Missed win:     	White=1     	---        Mistake:       	White=1     	Black=4      Inaccurate:     	White=2     	Black=2      OK:         	White=6     	Black=4      Best:        	---       	Black=2      Strong:       	---       	Black=1      Brilliant:      	White=1     	---} 1-0